fUST/lending_fUST_20250518
["ID","MTS","AMOUNT","RATE_DAILY","PERIOD"]
[361390717,1747548644137,-10444.8469172,0.00014731,2]
[361390718,1747548644147,-3392.899501,0.00014814,2]
[361390719,1747548644156,-420.0,0.0001501,2]
[361390720,1747548644165,-480.70497631,0.00015141,2]
[361390721,1747548644175,-181.6312261,0.00015377,2]
[361390722,1747548644184,-480.70497631,0.00015555,2]
[361390723,1747548644193,-652.84442803,0.00015721,2]
[361390724,1747548644203,-480.70497631,0.00015969,2]
[361390725,1747548644213,-212.62804646,0.00016237,2]
[361390726,1747548644222,-480.70497631,0.00016383,2]
[361390727,1747548644231,-160.0,0.00016427,2]
[361390728,1747548644240,-637.65272788,0.00016427,2]
[361390729,1747548644250,-422.53311782,0.00016427,2]
[361390730,1747548644259,-174.0,0.0001645,2]
[361390731,1747548644269,-480.70497631,0.00016797,2]
[361390732,1747548644279,-550.468,0.00016829,2]
[361390733,1747548644288,-480.70497631,0.0001721,2]
[361390734,1747548644297,-153.22672684,0.00017624,2]
[361390735,1747548644307,-151.19434921,0.00017624,2]
[361390736,1747548644316,-207.4,0.00017624,2]
[361390737,1747548644325,-480.70497631,0.00017624,2]
[361390738,1747548644334,-152.70720959,0.000177,2]
[361390739,1747548644343,-2331.97407818,0.00017701,2]
[361390740,1747548644352,-212.62804646,0.0001776,2]
[361390741,1747548644362,-500.0,0.000178,2]
[361390742,1747548644372,-500.0,0.000178,2]
[361390743,1747548644383,-500.0,0.000178,2]
[361390744,1747548644395,-566.41686682,0.000178,2]
[361390745,1747548644405,-596.30867886,0.000178,2]
[361390746,1747548644415,-500.0,0.000178,2]
[361390747,1747548644426,-500.0,0.000178,2]
[361390748,1747548644437,-500.0,0.000178,2]
[361390749,1747548644449,-500.0,0.000178,2]
[361390750,1747548644459,-500.0,0.000178,2]
[361390751,1747548644469,-462.24509849,0.000178,2]
[361390752,1747548644480,-500.0,0.000178,2]
[361390753,1747548644489,-500.0,0.000178,2]
[361390754,1747548644499,-1479.70705675,0.000178,2]
[361390755,1747548644509,-500.0,0.000178,2]
[361390756,1747548644518,-500.0,0.000178,2]
[361390757,1747548644527,-1479.70705675,0.000178,2]
[361390758,1747548644539,-229.56210955,0.000178,2]
[361390759,1747548644550,-500.0,0.000178,2]
[361390760,1747548644560,-1479.70705675,0.000178,2]
[361390761,1747548644572,-27.16665821,0.000178,2]
[361390773,1747548718920,1000.0,0.00027,120]
[361390774,1747548941547,160.1,0.00027397,120]
[361390789,1747549180626,1261.16729954,0.00027397,120]
[361390790,1747549277978,1305.3421195,0.00025476,35]
[361390791,1747549403508,-215.38559815,0.00012043,2]
[361390792,1747549407122,-177.90104503,0.00012043,2]
[361390793,1747549412023,-165.7235016,0.00012043,2]
[361390794,1747549414499,-334.43021759,0.00012043,2]
[361390795,1747549420746,-165.72350157,0.00012043,2]
[361390796,1747549422279,-202.71509368,0.00012043,2]
[361390797,1747549425979,-283.48525012,0.00012043,2]
[361390798,1747549432544,-211.33230852,0.00012043,2]
[361390799,1747549435910,-222.30313215,0.00012043,2]
[361390800,1747549438401,-303.43348442,0.00012043,2]
[361390801,1747549440662,-164.67862398,0.00012043,2]
[361390802,1747549444120,-203.15041354,0.00012043,2]
[361390803,1747549447188,-200.05319341,0.00012043,2]
[361390804,1747549452632,-152.0218264,0.00012043,2]
[361390805,1747549454614,-222.8968145,0.00012043,2]
[361390806,1747549460559,-182.90394334,0.00012043,2]
[361390807,1747549462705,-156.4524396,0.00012043,2]
[361390808,1747549464287,-196.16315877,0.00012043,2]
[361390809,1747549468346,-259.51834729,0.00012043,2]
[361390810,1747549469917,-267.22938112,0.00012043,2]
[361390811,1747549471433,-213.3437845,0.00012043,2]
[361390812,1747549477456,-241.59257698,0.00012043,2]
[361390813,1747549479497,-167.12266569,0.00012043,2]
[361390814,1747549482735,-90.43969805,0.00012043,2]
[361390826,1747549676642,-169.31948789,0.00011988,2]
[361390827,1747549678773,-220.2730512,0.00011988,2]
[361390828,1747549681423,-173.94630546,0.00011988,2]
[361390836,1747549773451,-179.23776153,0.0001198,2]
[361390837,1747549780798,-323.76223847,0.0001198,2]
[361390838,1747549782887,-152.0,0.0001198,2]
[361390839,1747549789987,-363.23596201,0.0001198,2]
[361391005,1747549833365,-180.03912739,0.0001198,2]
[361391042,1747549840135,-0.00345164,0.0001198,2]
[361391054,1747549842882,-491.50026866,0.0001198,2]
[361391055,1747549842892,-4436.46115545,0.00011988,2]
[361391056,1747549842902,-1247.7669667,0.00012231,2]
[361391057,1747549842911,-1200.0,0.00012286,2]
[361391058,1747549842921,-300.0,0.00012286,2]
[361391059,1747549842931,-300.0,0.00012287,2]
[361391060,1747549842941,-300.0,0.00012287,2]
[361391061,1747549842951,-300.0,0.00012287,2]
[361391062,1747549842961,-9199.37492613,0.0001229,2]
[361391063,1747549842970,-164.90998963,0.00012796,2]
[361391065,1747549842979,-420.0,0.00013483,2]
[361391067,1747549842989,-420.0,0.00013484,2]
[361391069,1747549842998,-1680.0,0.00013515,2]
[361391071,1747549843008,-221.7323337,0.00013598,2]
[361391072,1747549843018,-240.45742869,0.00013698,2]
[361391073,1747549843028,-350.0,0.00013698,2]
[361391074,1747549843037,-350.0,0.00013698,2]
[361391075,1747549843047,-300.0,0.00013698,2]
[361391076,1747549843056,-350.0,0.00013698,2]
[361391077,1747549843066,-242.5655464,0.00013698,2]
[361391078,1747549843076,-350.0,0.00013698,2]
[361391079,1747549843085,-264.20458553,0.00013698,2]
[361391080,1747549843095,-300.0,0.00013698,2]
[361391081,1747549843104,-351.27367716,0.00013698,2]
[361391082,1747549843115,-240.42934723,0.00013698,2]
[361391083,1747549843124,-400.0,0.00013698,2]
[361391084,1747549843134,-400.95367999,0.00013698,2]
[361391085,1747549843143,-450.0,0.00013698,2]
[361391086,1747549843153,-350.0,0.00013698,2]
[361391087,1747549843163,-450.0,0.00013698,2]
[361391088,1747549843172,-400.0,0.00013698,2]
[361391089,1747549843182,-400.0,0.00013698,2]
[361391090,1747549843191,-296.73408255,0.00013698,2]
[361391091,1747549843201,-400.48200204,0.00013698,2]
[361391092,1747549843210,-400.0,0.00013698,2]
[361391093,1747549843220,-362.34916764,0.00013698,2]
[361391094,1747549843230,-450.0,0.00013698,2]
[361391095,1747549843240,-450.0,0.00013698,2]
[361391096,1747549843250,-450.0,0.00013698,2]
[361391097,1747549843259,-450.0,0.00013698,2]
[361391098,1747549843269,-450.0,0.00013698,2]
[361391099,1747549843279,-450.0,0.00013698,2]
[361391100,1747549843289,-450.0,0.00013698,2]
[361391101,1747549843298,-450.0,0.00013698,2]
[361391102,1747549843308,-450.0,0.00013698,2]
[361391103,1747549843318,-450.0,0.00013698,2]
[361391104,1747549843329,-400.0,0.00013698,2]
[361391105,1747549843340,-450.0,0.00013698,2]
[361391106,1747549843350,-414.38201186,0.00013698,2]
[361391107,1747549843359,-110.31747311,0.00013698,2]
[361391108,1747549843376,-339.68252689,0.00013698,2]
[361391109,1747549843386,-412.05914421,0.00013698,2]
[361391110,1747549843395,-450.0,0.00013698,2]
[361391111,1747549843404,-450.0,0.00013698,2]
[361391112,1747549843414,-450.0,0.00013698,2]
[361391113,1747549843424,-450.0,0.00013698,2]
[361391114,1747549843435,-450.0,0.00013698,2]
[361391115,1747549843445,-450.0,0.00013698,2]
[361391116,1747549843455,-400.0,0.00013698,2]
[361391117,1747549843466,-400.0,0.00013698,2]
[361391118,1747549843476,-450.0,0.00013698,2]
[361391119,1747549843486,-400.0,0.00013698,2]
[361391120,1747549843495,-450.0,0.00013698,2]
[361391121,1747549843505,-450.0,0.00013698,2]
[361391122,1747549843516,-444.00087725,0.00013698,2]
[361391123,1747549843526,-450.0,0.00013698,2]
[361391124,1747549843535,-394.02652152,0.00013698,2]
[361391142,1747550513239,714748.5257194,0.00011,2]
[361391143,1747550518066,1000000.0,8.02e-05,2]
[361391144,1747550552897,1761912.43928123,0.00025474,30]
[361391145,1747550641183,550.0,0.000134,20]
[361391146,1747550673022,20000.0,0.0001,30]
[361391147,1747550673054,20000.0,0.0001,30]
[361391148,1747550673085,10000.0,0.0001,30]
[361391149,1747550673116,10000.0,0.0001,30]
[361391150,1747550673151,10000.0,0.0001,30]
[361391151,1747550673182,10000.0,0.0001,30]
[361391152,1747550673215,10000.0,0.0001,30]
[361391153,1747550673247,10000.0,0.0001,30]
[361391154,1747550673280,10000.0,0.0001,30]
[361391155,1747550673312,10000.0,0.0001,30]
[361391156,1747550673344,7392.556,0.0001,30]
[361391157,1747550673376,10000.0,0.0001,30]
[361391158,1747550673408,10000.0,0.0001,30]
[361391159,1747550673580,10000.0,0.0001,30]
[361391160,1747550673613,10000.0,0.0001,30]
[361391161,1747550673646,10000.0,0.0001,30]
[361391162,1747550673672,300000.0,0.0001,30]
[361391163,1747550673701,222907.444,0.0001,30]
[361391164,1747550735606,-318.16803371,0.00012,30]
[361391165,1747550763070,-162.22875713,0.00010999,2]
[361391168,1747550792543,1698720.16552856,0.00027397,120]
[361391169,1747550799663,500.0,0.00025829,120]
[361391170,1747550812476,-137.77124287,0.00010999,2]
[361391176,1747550991803,-4072.22644913,0.00012869,2]
[361391180,1747551031988,-927.77355087,0.0001274,2]
[361391181,1747551031998,-596.28896227,0.00013515,2]
[361391182,1747551032007,-234.02521724,0.00013598,2]
[361391183,1747551032016,-300.0,0.00013696,2]
[361391184,1747551032025,-1200.0,0.00013696,2]
[361391185,1747551032034,-180.0,0.00013696,2]
[361391186,1747551032044,-500.0,0.00013697,2]
[361391187,1747551032053,-396.81097193,0.00013697,2]
[361391188,1747551032062,-500.0,0.00013697,2]
[361391189,1747551032071,-500.0,0.00013697,2]
[361391190,1747551032081,-500.0,0.00013697,2]
[361391191,1747551032092,-500.0,0.00013697,2]
[361391192,1747551032102,-500.0,0.00013697,2]
[361391193,1747551032111,-500.0,0.00013697,2]
[361391194,1747551032120,-500.0,0.00013697,2]
[361391195,1747551032130,-500.0,0.00013697,2]
[361391196,1747551032139,-500.0,0.00013697,2]
[361391197,1747551032148,-500.0,0.00013697,2]
[361391198,1747551032157,-500.0,0.00013697,2]
[361391199,1747551032166,-500.0,0.00013697,2]
[361391200,1747551032175,-500.0,0.00013697,2]
[361391201,1747551032184,-500.0,0.00013697,2]
[361391202,1747551032194,-500.0,0.00013697,2]
[361391203,1747551032203,-500.0,0.00013697,2]
[361391204,1747551032212,-500.0,0.00013697,2]
[361391205,1747551032221,-500.0,0.00013697,2]
[361391206,1747551032230,-500.0,0.00013697,2]
[361391207,1747551032239,-500.0,0.00013697,2]
[361391208,1747551032248,-500.0,0.00013697,2]
[361391209,1747551032257,-483.94152722,0.00013697,2]
[361391210,1747551032267,-500.0,0.00013697,2]
[361391211,1747551032276,-500.0,0.00013697,2]
[361391212,1747551032285,-500.0,0.00013697,2]
[361391213,1747551032294,-500.0,0.00013697,2]
[361391214,1747551032303,-500.0,0.00013697,2]
[361391215,1747551032312,-500.0,0.00013697,2]
[361391216,1747551032322,-500.0,0.00013697,2]
[361391217,1747551032331,-500.0,0.00013697,2]
[361391218,1747551032340,-500.0,0.00013697,2]
[361391219,1747551032349,-500.0,0.00013697,2]
[361391220,1747551032359,-500.0,0.00013697,2]
[361391221,1747551032368,-500.0,0.00013697,2]
[361391222,1747551032377,-500.0,0.00013697,2]
[361391223,1747551032387,-500.0,0.00013697,2]
[361391224,1747551032396,-500.0,0.00013697,2]
[361391225,1747551032406,-181.23584675,0.00013697,2]
[361391316,1747551037999,-318.76415325,0.00013697,2]
[361391318,1747551038009,-159.55026151,0.00013697,2]
[361391355,1747551040288,-220.83713136,0.00013697,2]
[361391356,1747551040298,-818.86286864,0.00013697,2]
[361391388,1747552025143,-1800.0,0.00012205,2]
[361391389,1747552025165,-1200.0,0.00012328,2]
[361391390,1747552025186,-300.0,0.00012328,2]
[361391391,1747552025210,-300.0,0.00012328,2]
[361391392,1747552025231,-580.38,0.00012329,2]
[361391393,1747552025251,-666.41,0.00012329,2]
[361391394,1747552025271,-555.34,0.00012329,2]
[361391395,1747552025290,-555.34,0.00012329,2]
[361391396,1747552025314,-202.02137634,0.00012329,2]
[361391412,1747552232158,-989.01204868,0.00012083,2]
[361391677,1747552243185,-1030.34657498,0.00012083,2]
[361391679,1747552243194,-300.0,0.00012328,2]
[361391681,1747552243204,-1200.0,0.00012328,2]
[361391683,1747552243214,-178.54,0.00012329,2]
[361391685,1747552243222,-158.01,0.00012329,2]
[361391687,1747552243230,-280.46,0.00012329,2]
[361391689,1747552243239,-233.72,0.00012329,2]
[361391691,1747552243248,-194.77,0.00012329,2]
[361391693,1747552243257,-162.31,0.00012329,2]
[361391695,1747552243266,-811.55,0.00012329,2]
[361391697,1747552243274,-714.66800968,0.0001255,2]
[361391699,1747552243285,-90.52051172,0.0001255,2]
[361391701,1747552243294,-4505.99351411,0.00012658,2]
[361392003,1747552246203,-5494.00648589,0.00012658,2]
[361392005,1747552246213,-3630.99351311,0.00012979,2]
[361392007,1747552246224,-606.64823723,0.00012979,2]
[361392009,1747552246234,-152.13406212,0.00013289,2]
[361392011,1747552246243,-653.00730596,0.00013315,2]
[361392013,1747552246253,-1838.40039399,0.00013453,2]
[361392016,1747552246266,-1111.06737773,0.00013453,2]
[361392018,1747552246276,-2949.4677717,0.00013489,2]
[361392020,1747552246285,-152.0,0.0001352,2]
[361392022,1747552246295,-2949.4677717,0.00013526,2]
[361392024,1747552246304,-420.0,0.00013529,2]
[361392026,1747552246314,-500.0,0.0001355,2]
[361392028,1747552246323,-500.0,0.0001355,2]
[361392030,1747552246333,-156.2399619,0.0001355,2]
[361392032,1747552246343,-500.0,0.0001355,2]
[361392034,1747552246352,-500.0,0.0001355,2]
[361392036,1747552246362,-336.10826976,0.0001355,2]
[361392038,1747552246371,-500.0,0.0001355,2]
[361392040,1747552246380,-500.0,0.0001355,2]
[361392042,1747552246389,-500.0,0.0001355,2]
[361392044,1747552246398,-500.0,0.0001355,2]
[361392046,1747552246407,-500.0,0.0001355,2]
[361392048,1747552246417,-500.0,0.0001355,2]
[361392050,1747552246426,-208.93193254,0.0001355,2]
[361392052,1747552246435,-2274.9517265,0.0001355,2]
[361392054,1747552246444,-2274.9517265,0.0001355,2]
[361392056,1747552246454,-2274.9517265,0.0001355,2]
[361392058,1747552246465,-2274.9517265,0.0001355,2]
[361392060,1747552246475,-2274.9517265,0.0001355,2]
[361392062,1747552246484,-2274.9517265,0.0001355,2]
[361392064,1747552246494,-2274.9517265,0.0001355,2]
[361392066,1747552246503,-2274.9517265,0.0001355,2]
[361392068,1747552246512,-2274.9517265,0.0001355,2]
[361392070,1747552246525,-2274.9517265,0.0001355,2]
[361392071,1747552246534,-2274.9517265,0.0001355,2]
[361392072,1747552246544,-2274.9517265,0.0001355,2]
[361392073,1747552246554,-2274.9517265,0.0001355,2]
[361392074,1747552246563,-2274.9517265,0.0001355,2]
[361392075,1747552246572,-2274.9517265,0.0001355,2]
[361392076,1747552246582,-2274.9517265,0.0001355,2]
[361392077,1747552246591,-2274.9517265,0.0001355,2]
[361392078,1747552246601,-2274.9517265,0.0001355,2]
[361392079,1747552246610,-2274.9517265,0.0001355,2]
[361392080,1747552246619,-2274.9517265,0.0001355,2]
[361392081,1747552246628,-2274.9517265,0.0001355,2]
[361392082,1747552246638,-2274.9517265,0.0001355,2]
[361392083,1747552246647,-2274.9517265,0.0001355,2]
[361392084,1747552246657,-2274.9517265,0.0001355,2]
[361392085,1747552246666,-2274.9517265,0.0001355,2]
[361392086,1747552246676,-2274.9517265,0.0001355,2]
[361392087,1747552246685,-2274.9517265,0.0001355,2]
[361392088,1747552246695,-2274.9517265,0.0001355,2]
[361392089,1747552246704,-2274.9517265,0.0001355,2]
[361392090,1747552246714,-2274.9517265,0.0001355,2]
[361392091,1747552246723,-2274.9517265,0.0001355,2]
[361392092,1747552246732,-2274.9517265,0.0001355,2]
[361392093,1747552246741,-2274.9517265,0.0001355,2]
[361392094,1747552246750,-2274.9517265,0.0001355,2]
[361392095,1747552246759,-2274.9517265,0.0001355,2]
[361392096,1747552246770,-2274.9517265,0.0001355,2]
[361392097,1747552246779,-2274.9517265,0.0001355,2]
[361392098,1747552246788,-2274.9517265,0.0001355,2]
[361392099,1747552246798,-2274.9517265,0.0001355,2]
[361392100,1747552246807,-2274.9517265,0.0001355,2]
[361392101,1747552246816,-2274.9517265,0.0001355,2]
[361392102,1747552246826,-2274.9517265,0.0001355,2]
[361392103,1747552246835,-2274.9517265,0.0001355,2]
[361392104,1747552246844,-2274.9517265,0.0001355,2]
[361392105,1747552246853,-2274.9517265,0.0001355,2]
[361392106,1747552246863,-2274.9517265,0.0001355,2]
[361392107,1747552246871,-2274.9517265,0.0001355,2]
[361392108,1747552246881,-2274.9517265,0.0001355,2]
[361392109,1747552246890,-2274.9517265,0.0001355,2]
[361392110,1747552246899,-151.0,0.00013552,2]
[361392111,1747552246908,-324.12425,0.00013552,2]
[361392112,1747552246918,-324.12425,0.00013552,2]
[361392113,1747552246928,-324.12425,0.00013552,2]
[361392114,1747552246937,-324.12425,0.00013552,2]
[361392115,1747552246947,-324.12425,0.00013552,2]
[361392116,1747552246956,-324.12425,0.00013552,2]
[361392117,1747552246966,-324.12425,0.00013552,2]
[361392118,1747552247111,-324.12425,0.00013552,2]
[361392119,1747552247125,-324.12425,0.00013552,2]
[361392120,1747552247135,-324.12425,0.00013552,2]
[361392121,1747552247144,-324.12425,0.00013552,2]
[361392122,1747552247154,-324.12425,0.00013552,2]
[361392123,1747552247163,-324.12425,0.00013552,2]
[361392124,1747552247175,-324.12425,0.00013552,2]
[361392125,1747552247185,-324.12425,0.00013552,2]
[361392126,1747552247194,-324.12425,0.00013552,2]
[361392127,1747552247203,-324.12425,0.00013552,2]
[361392128,1747552247212,-324.12425,0.00013552,2]
[361392129,1747552247222,-324.12425,0.00013552,2]
[361392130,1747552247231,-324.124242,0.00013552,2]
[361392131,1747552247240,-151.0,0.00013552,2]
[361392132,1747552247249,-151.0,0.00013552,2]
[361392133,1747552247258,-151.0,0.00013552,2]
[361392134,1747552247267,-151.0,0.00013552,2]
[361392135,1747552247276,-151.0,0.00013552,2]
[361392136,1747552247286,-151.0,0.00013552,2]
[361392137,1747552247295,-270.344207,0.00013552,2]
[361392138,1747552247304,-737.969004,0.00013552,2]
[361392139,1747552247313,-737.969004,0.00013552,2]
[361392140,1747552247322,-737.969004,0.00013552,2]
[361392141,1747552247331,-737.969004,0.00013552,2]
[361392142,1747552247340,-737.969004,0.00013552,2]
[361392143,1747552247349,-737.969004,0.00013552,2]
[361392144,1747552247358,-737.969004,0.00013552,2]
[361392145,1747552247367,-737.969004,0.00013552,2]
[361392146,1747552247376,-737.969004,0.00013552,2]
[361392147,1747552247385,-737.969004,0.00013552,2]
[361392148,1747552247394,-737.969004,0.00013552,2]
[361392149,1747552247403,-737.969004,0.00013552,2]
[361392150,1747552247412,-737.969004,0.00013552,2]
[361392151,1747552247421,-737.969004,0.00013552,2]
[361392152,1747552247430,-737.969004,0.00013552,2]
[361392153,1747552247440,-737.969004,0.00013552,2]
[361392155,1747552247449,-737.969004,0.00013552,2]
[361392156,1747552247458,-737.969004,0.00013552,2]
[361392158,1747552247467,-737.969004,0.00013552,2]
[361392160,1747552247476,-737.96901,0.00013552,2]
[361392162,1747552247485,-151.0,0.00013552,2]
[361392164,1747552247494,-151.0,0.00013552,2]
[361392167,1747552247504,-151.0,0.00013552,2]
[361392168,1747552247513,-151.0,0.00013552,2]
[361392171,1747552247523,-151.0,0.00013552,2]
[361392173,1747552247532,-151.0,0.00013552,2]
[361392175,1747552247541,-151.0,0.00013552,2]
[361392177,1747552247551,-247.458967,0.00013552,2]
[361392179,1747552247560,-151.0,0.00013553,2]
[361392180,1747552247569,-151.0,0.00013553,2]
[361392182,1747552247578,-151.0,0.00013553,2]
[361392185,1747552247587,-151.0,0.00013553,2]
[361392186,1747552247597,-151.0,0.00013553,2]
[361392188,1747552247606,-151.0,0.00013553,2]
[361392191,1747552247615,-283.991943,0.00013553,2]
[361392193,1747552247625,-151.0,0.00013553,2]
[361392195,1747552247634,-151.0,0.00013553,2]
[361392196,1747552247643,-151.0,0.00013553,2]
[361392199,1747552247653,-151.0,0.00013553,2]
[361392201,1747552247662,-151.0,0.00013553,2]
[361392202,1747552247672,-151.0,0.00013553,2]
[361392204,1747552247680,-151.0,0.00013553,2]
[361392206,1747552247690,-151.0,0.00013553,2]
[361392208,1747552247699,-151.0,0.00013553,2]
[361392210,1747552247709,-151.0,0.00013553,2]
[361392212,1747552247719,-151.0,0.00013553,2]
[361392215,1747552247729,-151.0,0.00013553,2]
[361392217,1747552247738,-151.0,0.00013553,2]
[361392218,1747552247747,-151.0,0.00013553,2]
[361392220,1747552247756,-151.0,0.00013553,2]
[361392223,1747552247765,-231.809735,0.00013553,2]
[361392224,1747552247777,-151.0,0.00013554,2]
[361392226,1747552247786,-151.0,0.00013554,2]
[361392228,1747552247795,-239.539251,0.00013554,2]
[361392230,1747552247805,-1539.44756,0.00013554,2]
[361392232,1747552247815,-1539.44756,0.00013554,2]
[361392235,1747552247824,-1539.44756,0.00013554,2]
[361392236,1747552247833,-1539.44756,0.00013554,2]
[361392239,1747552247843,-1539.44756,0.00013554,2]
[361392241,1747552247852,-1539.44756,0.00013554,2]
[361392243,1747552247862,-1539.44756,0.00013554,2]
[361392244,1747552247870,-1539.44756,0.00013554,2]
[361392246,1747552247879,-1539.44756,0.00013554,2]
[361392248,1747552247888,-1539.44756,0.00013554,2]
[361392250,1747552247897,-1539.44756,0.00013554,2]
[361392252,1747552247906,-1539.44756,0.00013554,2]
[361392254,1747552247916,-1539.44756,0.00013554,2]
[361392256,1747552247925,-1539.44756,0.00013554,2]
[361392258,1747552247934,-1539.44756,0.00013554,2]
[361392260,1747552247943,-1539.44756,0.00013554,2]
[361392262,1747552247953,-1539.44756,0.00013554,2]
[361392264,1747552247963,-1539.44756,0.00013554,2]
[361392266,1747552247972,-1539.44756,0.00013554,2]
[361392268,1747552247981,-1539.4475574,0.00013554,2]
[361392270,1747552247992,-151.0,0.00013554,2]
[361392272,1747552248001,-151.0,0.00013554,2]
[361392274,1747552248011,-151.0,0.00013554,2]
[361392276,1747552248020,-151.0,0.00013554,2]
[361392278,1747552248029,-151.0,0.00013554,2]
[361392280,1747552248038,-151.0,0.00013554,2]
[361392283,1747552248047,-151.0,0.00013554,2]
[361392285,1747552248057,-151.0,0.00013554,2]
[361392287,1747552248066,-151.0,0.00013554,2]
[361392288,1747552248075,-151.0,0.00013554,2]
[361392291,1747552248084,-151.0,0.00013554,2]
[361392293,1747552248093,-151.0,0.00013554,2]
[361392294,1747552248102,-201.729913,0.00013554,2]
[361392296,1747552248111,-210.790357,0.00013555,2]
[361392299,1747552248120,-151.0,0.00013555,2]
[361392301,1747552248130,-151.0,0.00013555,2]
[361392303,1747552248139,-151.0,0.00013555,2]
[361392304,1747552248148,-1026.893229,0.00013555,2]
[361392306,1747552248157,-1026.893229,0.00013555,2]
[361392308,1747552248166,-1026.893229,0.00013555,2]
[361392310,1747552248179,-1026.893229,0.00013555,2]
[361392313,1747552248188,-1026.893229,0.00013555,2]
[361392314,1747552248197,-1026.893229,0.00013555,2]
[361392317,1747552248207,-1026.893229,0.00013555,2]
[361392319,1747552248216,-1026.893229,0.00013555,2]
[361392320,1747552248225,-1026.893229,0.00013555,2]
[361392322,1747552248234,-1026.893229,0.00013555,2]
[361392324,1747552248243,-1026.893229,0.00013555,2]
[361392327,1747552248252,-1026.893229,0.00013555,2]
[361392328,1747552248261,-1026.893229,0.00013555,2]
[361392331,1747552248271,-1026.893229,0.00013555,2]
[361392332,1747552248280,-1026.893229,0.00013555,2]
[361392333,1747552248289,-1026.893229,0.00013555,2]
[361392334,1747552248298,-1026.893229,0.00013555,2]
[361392335,1747552248307,-1026.893229,0.00013555,2]
[361392336,1747552248317,-1026.893229,0.00013555,2]
[361392337,1747552248326,-1026.89322,0.00013555,2]
[361392338,1747552248335,-3883.770651,0.00013555,2]
[361392339,1747552248343,-3883.770651,0.00013555,2]
[361392340,1747552248352,-3883.770651,0.00013555,2]
[361392341,1747552248361,-3883.770651,0.00013555,2]
[361392342,1747552248370,-3883.770651,0.00013555,2]
[361392343,1747552248379,-3883.770651,0.00013555,2]
[361392344,1747552248388,-3883.770651,0.00013555,2]
[361392345,1747552248397,-3883.770651,0.00013555,2]
[361392346,1747552248406,-3883.770651,0.00013555,2]
[361392347,1747552248416,-3883.770651,0.00013555,2]
[361392348,1747552248425,-3883.770651,0.00013555,2]
[361392349,1747552248434,-3883.770651,0.00013555,2]
[361392350,1747552248443,-3883.770651,0.00013555,2]
[361392351,1747552248452,-3883.770651,0.00013555,2]
[361392352,1747552248461,-3883.770651,0.00013555,2]
[361392353,1747552248470,-3883.770651,0.00013555,2]
[361392354,1747552248479,-3883.770651,0.00013555,2]
[361392355,1747552248488,-3883.770651,0.00013555,2]
[361392356,1747552248497,-3883.770651,0.00013555,2]
[361392357,1747552248506,-3883.770653,0.00013555,2]
[361392358,1747552248515,-322.181521,0.00013556,2]
[361392359,1747552248525,-322.181521,0.00013556,2]
[361392360,1747552248534,-322.181521,0.00013556,2]
[361392361,1747552248543,-322.181521,0.00013556,2]
[361392362,1747552248552,-322.181521,0.00013556,2]
[361392363,1747552248562,-322.181521,0.00013556,2]
[361392364,1747552248571,-322.181521,0.00013556,2]
[361392365,1747552248580,-322.181521,0.00013556,2]
[361392366,1747552248590,-322.181521,0.00013556,2]
[361392367,1747552248600,-322.181521,0.00013556,2]
[361392368,1747552248609,-322.181521,0.00013556,2]
[361392369,1747552248619,-322.181521,0.00013556,2]
[361392370,1747552248628,-322.181521,0.00013556,2]
[361392371,1747552248637,-322.181521,0.00013556,2]
[361392372,1747552248646,-322.181521,0.00013556,2]
[361392373,1747552248655,-322.181521,0.00013556,2]
[361392374,1747552248664,-322.181521,0.00013556,2]
[361392375,1747552248674,-322.181521,0.00013556,2]